Workbook

Sheet NSU
B1: Lotta Lindroos | E1: 16.05.2003 Eurajoki
B2: SUPERPESIS | E2: Runkosarja | I2: Kärkilyönnit (KL), pesänvälit | Q2: Runkosarja | U2: Ylempi loppusarja | Z2: Alempi loppusarja | AG2: Arvo-ottelut ja mitalit
B3: Vuosi | C3: Sija | D3: Seura | E3: OTT | F3: KUN | G3: LÖI | H3: TOI | I3: KL | J3: 0 > 1 | K3: 1 > 2 | L3: 2 > 3 | M3: 3 > k | N3: KL-% | P3: LÖI | Q3: TOI | R3: L+T | S3: KL | U3: OTT | V3: KUN | W3: LÖI | X3: TOI | Y3: KL | Z3: OTT | AA3: KUN | AB3: LÖI | AC3: TOI | AD3: KL | AE3: IL | AF3: LL | AG3: Halli | AH3: K | AI3: H | AJ3: P
B4: 2017 | C4: 6. | D4: Fera 3 | F4: suomensarja
B5: 2018 | C5: 25. | D5: Fera 2 | F5: tyttöjen superpesis
B6: 2019 | C6: 2. | D6: Fera 2 | F6: suomensarja
B7: 2020 | C7: 2. | D7: PöU | F7: ykköspesis
B8: 2020 | C8: 8. | D8: Fera | E8: 1 | F8: 0 | G8: 0 | H8: 0 | I8: 1 | J8: 1 | K8: 0 | L8: 0 | M8: 0 | N8: 25.0 % | O8: 4
B9: 2021 | C9: 1. | D9: Fera 2 | F9: suomensarja
B10: 2021 | C10: 8. | D10: Fera | E10: 3 | F10: 0 | G10: 0 | H10: 1 | I10: 5 | J10: 5 | K10: 0 | L10: 0 | M10: 0 | N10: 55.6 % | O10: 9
B11: 2022 | C11: 2. | D11: LaJy | F11: ykköspesis
B12: 2022 | C12: 6. | D12: Fera | E12: 3 | F12: 0 | G12: 1 | H12: 0 | I12: 6 | J12: 4 | K12: 0 | L12: 1 | M12: 1 | N12: 37.5 % | O12: 16 | U12: 1 | V12: 0 | W12: 0 | X12: 0 | Y12: 2
B13: 2023 | C13: 2. | D13: LaJy | F13: ykköspesis
B14: 2023 | C14: 7. | D14: Fera | E14: 1 | F14: 0 | G14: 0 | H14: 2 | I14: 3 | J14: 2 | K14: 1 | L14: 0 | M14: 0 | N14: 75.0 % | O14: 4 | U14: 3 | V14: 0 | W14: 0 | X14: 0 | Y14: 3
B15: Yhteensä | E15: =SUM(E4:E14) -> 8 | F15: 0 | G15: 1 | H15: 3 | I15: 15 | J15: 12 | K15: 1 | L15: 1 | M15: 1 | N15: =PRODUCT(I15/O15) -> 45.5 % | O15: =SUM(O4:O14) -> 33 | U15: =SUM(U4:U14) -> 4 | V15: 0 | W15: 0 | X15: 0 | Y15: 5 | Z15: 0 | AA15: 0 | AB15: 0 | AC15: 0 | AD15: 0 | AE15: 0 | AF15: 0 | AG15: 0 | AH15: 0 | AI15: 0 | AJ15: 0
B16: Pesispörssi | D16: =SUM(F15:H15)+((I15-F15-G15)/3)+(E15/3)+(AE15*25)+(AF15*25)+(AG15*10)+(AH15*25)+(AI15*20)+(AJ15*15) -> 11.3
B18: URA SUPERISSA | E18: OTT | F18: KUN | G18: LÖI | H18: TOI | I18: KL | K18: ka/L | L18: ka/T | M18: ka/KL | N18: K - % | P18: ENSIMMÄISET
B19: Runkosarja | E19: =PRODUCT(E15) -> 8 | F19: =PRODUCT(F15) -> 0 | G19: =PRODUCT(G15) -> 1 | H19: =PRODUCT(H15) -> 3 | I19: =PRODUCT(I15) -> 15 | K19: =PRODUCT((F19+G19)/E19) -> 0.13 | L19: =PRODUCT(H19/E19) -> 0.38 | M19: =PRODUCT(I19/E19) -> 1.88 | N19: =PRODUCT(N15) -> 45.5 % | O19: =PRODUCT(O15) -> 33 | P19: Ottelu | R19: 09.08. 2020 SMJ - Fera 2-0 (4-1, 2-1) | AB19: 1. ottelu | AD19: 17 v 2 kk 24 pv
B20: Ylempi loppusarja | E20: =PRODUCT(U15) -> 4 | F20: =PRODUCT(V15) -> 0 | G20: 0 | H20: 0 | I20: 5 | K20: =PRODUCT((F20+G20)/E20) -> 0.00 | L20: =PRODUCT(H20/E20) -> 0.00 | M20: =PRODUCT(I20/E20) -> 1.25 | N20: =PRODUCT(I20/O20) -> 62.5 % | O20: 8 | P20: Lyöty | R20: 17.06. 2022 Kirittäret - Fera 2-1 (5-3, 3-6, 1-0) | AB20: 6. ottelu | AD20: 19 v 1 kk 1 pv
B21: Alempi loppusarja | P21: Tuotu | R21: 11.07. 2021 Virkiä - Fera 1-2 (6-0, 3-5, 2-5) | AB21: 3. ottelu | AD21: 18 v 1 kk 26 pv
B22: KAIKKI | E22: =SUM(E19:E21) -> 12 | F22: =SUM(F19:F21) -> 0 | G22: =SUM(G19:G21) -> 1 | H22: =SUM(H19:H21) -> 3 | I22: =SUM(I19:I21) -> 20 | K22: =PRODUCT((F22+G22)/E22) -> 0.08 | L22: =PRODUCT(H22/E22) -> 0.25 | M22: =PRODUCT(I22/E22) -> 1.67 | N22: =PRODUCT(I22/O22) -> 48.8 % | O22: =SUM(O19:O21) -> 41 | P22: Kunnari
B24: Seurat | D24: Fera (1958), kasvattajaseura
D25: PöU = Pöytyän Urheilijat (1945)
D26: LaJy = Laitilan Jyske (1911)
